bitfinex/quotes_SOLUSD_20260211
["timestamp","ask_amount","ask_price","bid_price","bid_amount"]
[1770816796586,25.80818263,81.92,81.721,652.22270324]
[1770816796771,12.4530424,81.84,81.811,5.13032502]
[1770816796975,12.4530424,81.82,81.724,5.13032502]
[1770816797166,34.72,81.867,81.77,12.4530424]
[1770816797488,12.4530424,81.81,81.77,12.4530424]
[1770816797788,12.4530424,81.9,81.761,60.18]
[1770816797998,12.4530424,81.83,81.761,60.18]
[1770816798294,12.4530424,81.83,81.764,5.13032502]
[1770816798600,55.42,81.899,81.784,5.13032502]
[1770816798601,12.21075767,81.895,81.784,5.13032502]
[1770816798773,12.4530424,81.85,81.781,299.58058715]
[1770816798976,55.4,81.884,81.81,12.4530424]
[1770816799185,61.05678392,82.157,81.788,5.13032502]
[1770816799186,42.73061551,81.909,81.788,5.13032502]
[1770816799383,12.4530424,81.88,81.84,12.4530424]
[1770816799587,12.4530424,81.88,81.807,5.13032502]
[1770816799787,12.4530424,81.86,81.781,299.58058715]
[1770816800001,12.4530424,81.83,81.781,12.22777906]
[1770816800284,60.47032502,81.877,81.79,12.4530424]
[1770816800500,24.67204739,81.84,81.8,12.4530424]
[1770816800666,12.21900499,81.84,81.763,5.13032502]
[1770816800865,19.20610177,81.81,81.76,42.80821917]
[1770816801092,19.20610177,81.82,81.76,91.73189823]
[1770816801274,19.20610177,81.82,81.78,19.20610177]
[1770816802277,19.20610177,81.81,81.77,19.20610177]
[1770816802477,19.20610177,81.81,81.771,12.22927443]
[1770816802695,19.20610177,81.81,81.77,19.20610177]
[1770816802696,19.20610177,81.78,81.702,48.95835097]
[1770816802895,287.25445853,81.809,81.73,19.20610177]
[1770816803196,12.22359398,81.809,81.77,19.20610177]
[1770816803387,48.87648115,81.839,81.736,48.9378906]
[1770816803388,19.20610177,81.8,81.76,19.20610177]
[1770816803586,19.20610177,81.78,81.691,48.96464153]
[1770816803791,19.20610177,81.77,81.685,48.96820266]
[1770816804092,19.20610177,81.77,81.667,48.97921796]
[1770816804093,19.20610177,81.76,81.72,19.20610177]
[1770816804275,19.20610177,81.78,81.73,19.20610177]
[1770816804472,19.20610177,81.76,81.71,19.20610177]
[1770816804679,42.80350743,81.769,81.72,19.20610177]
[1770816804885,42.80350743,81.769,81.73,19.23326635]
[1770816805289,42.80350743,81.769,81.72,19.23326635]
[1770816805589,42.80350743,81.769,81.74,19.23326635]
[1770816805787,42.80350743,81.769,81.72,19.23326635]
[1770816805992,19.23326635,81.76,81.657,48.98479935]
[1770816806180,19.23326635,81.75,81.674,30.60927311]
[1770816806494,12.23705625,81.719,81.68,19.23326635]
[1770816806870,19.23326635,81.71,81.67,19.23326635]
[1770816807077,12.23705625,81.719,81.68,19.23326635]
[1770816807274,12.23705625,81.719,81.69,19.23326635]
[1770816807495,19.23326635,81.74,81.7,19.23326635]
[1770816807698,19.23326635,81.73,81.671,30.61053]
[1770816807900,42.81659816,81.744,81.635,48.99806302]
[1770816807901,19.23326635,81.71,81.654,30.61675452]
[1770816808191,55.02,81.741,81.681,12.24274923]
[1770816808192,19.23326635,81.72,81.681,12.24274923]
[1770816808395,55.02,81.741,81.69,19.23326635]
[1770816808689,12.23555898,81.729,81.673,12.24380565]
[1770816808891,19.23326635,81.75,81.71,19.23326635]
[1770816809099,19.23326635,81.75,81.666,48.97983081]
[1770816809100,19.23326635,81.72,81.636,12.24945779]
[1770816809277,54.98,81.751,81.627,30.62676503]
[1770816809278,19.23326635,81.67,81.627,30.62676503]
[1770816809601,385.21272298,81.773,81.61,49.01339944]
[1770816809602,19.23326635,81.69,81.64,19.23326635]
[1770816809892,19.23326635,81.69,81.65,19.23326635]
[1770816810194,55.0,81.704,81.64,19.23326635]
[1770816810500,19.23326635,81.68,81.64,19.23326635]
[1770816810795,19.23326635,81.68,81.641,12.24874756]
[1770816811007,19.23326635,81.7,81.67,19.23326635]
[1770816811181,19.23326635,81.7,81.644,5.13032502]
[1770816811496,54.94,81.722,81.641,42.87061647]
[1770816811699,19.23326635,81.69,81.634,12.24974917]
[1770816811876,19.23326635,81.68,81.64,19.23326635]
[1770816812077,19.23326635,81.67,81.635,12.24950186]
[1770816812584,19.23326635,81.67,81.63,19.23326635]
[1770816812585,19.23326635,81.67,81.63,31.48353717]
[1770816812791,54.92,81.69,81.65,19.23326635]
[1770816812792,12.24155026,81.689,81.65,19.23326635]
[1770816812997,19.23326635,81.68,81.64,19.23326635]
[1770816813197,19.23326635,81.72,81.67,19.23326635]
[1770816813387,19.23326635,81.72,81.68,19.23326635]
[1770816813699,19.23326635,81.72,81.634,5.13032502]
[1770816813900,19.23326635,81.73,81.63,140.87945126]
[1770816814079,12.23331376,81.744,81.67,19.23326635]
[1770816814080,19.23326635,81.71,81.67,19.23326635]
[1770816814280,19.23326635,81.7,81.63,189.88104381]
[1770816817102,19.23326635,81.69,81.636,5.13032502]
[1770816817399,5.13032502,81.718,81.625,12.25104585]
[1770816817604,54.72,81.726,81.596,30.6383955]
[1770816817605,5.13032502,81.696,81.596,30.6383955]
[1770816817784,19.23326635,81.63,81.6,19.23326635]
[1770816817990,19.23326635,81.65,81.61,19.23326635]
[1770816818202,19.23326635,81.63,81.597,12.25535252]
[1770816818577,19.23326635,81.63,81.591,12.25625375]
[1770816818782,30.62062446,81.645,81.591,12.25625375]
[1770816818783,19.23326635,81.62,81.591,12.25625375]
[1770816819083,19.23326635,81.63,81.591,12.25625375]
[1770816819289,12.25054821,81.629,81.591,12.25625375]
[1770816819498,54.6,81.63,81.6,19.23326635]
[1770816819695,54.6,81.633,81.6,19.23326635]
[1770816820001,54.6,81.633,81.591,42.89688813]
[1770816820002,19.23326635,81.63,81.591,12.25625375]
[1770816820512,19.23326635,81.61,81.58,12.45783725]
[1770816820800,19.23326635,81.61,81.581,12.25775609]
[1770816820994,5.13032502,81.656,81.581,12.25775609]
[1770816820995,19.23326635,81.62,81.581,12.25775609]
[1770816821174,54.56,81.609,81.6,19.23326635]
[1770816821380,19.23326635,81.65,81.6,19.23326635]
[1770816821588,19.23326635,81.65,81.61,19.23326635]
[1770816821800,19.23326635,81.63,81.581,12.25775609]
[1770816821982,54.56,81.654,81.6,19.23326635]
[1770816821983,19.23326635,81.64,81.6,19.23326635]
[1770816822187,19.23326635,81.65,81.61,19.23326635]
[1770816822498,54.56,81.654,81.6,19.23326635]
[1770816822499,19.23326635,81.64,81.6,19.23326635]
[1770816822708,12.24904763,81.639,81.581,12.25775609]
[1770816822997,19.23326635,81.63,81.59,19.23326635]
[1770816823199,42.87166672,81.639,81.58,19.43326635]
[1770816823402,12.24904763,81.639,81.6,19.23326635]
[1770816823582,12.24904763,81.639,81.61,19.23326635]
[1770816824081,19.23326635,81.63,81.59,19.23326635]
[1770816824288,19.23326635,81.62,81.581,12.25775609]
[1770816824489,54.48,81.621,81.59,19.23326635]
[1770816824891,54.48,81.621,81.6,19.23326635]
[1770816825204,54.44,81.639,81.6,19.23326635]
[1770816825394,19.23326635,81.62,81.581,42.90214632]
[1770816825704,19.23326635,81.62,81.581,12.25775609]
[1770816825889,19.23326635,81.61,81.58,0.2]
[1770816826406,19.23326635,81.62,81.581,12.25775609]
[1770816826593,54.44,81.624,81.6,19.23326635]
[1770816826981,54.44,81.624,81.581,42.90214632]
[1770816827214,30.59788262,81.705,81.61,19.23326635]
[1770816827516,19.23326635,81.68,81.64,19.23326635]
[1770816827684,54.36,81.704,81.65,19.23326635]
[1770816827888,19.23326635,81.7,81.66,19.23326635]
[1770816828195,54.36,81.704,81.67,19.23326635]
[1770816828703,19.23326635,81.73,81.69,19.23326635]
[1770816828914,19.23326635,81.72,81.68,19.23326635]
[1770816829121,19.23326635,81.71,81.67,12.24438541]
[1770816829286,19.23326635,81.7,81.612,49.01196467]
[1770816829482,19.23326635,81.69,81.65,19.23326635]
[1770816829907,19.23326635,81.69,81.655,12.24654918]
[1770816830216,54.3,81.709,81.671,12.24424826]
[1770816830393,54.3,81.709,81.67,19.23326635]
[1770816831009,54.3,81.719,81.68,19.23326635]
[1770816831206,19.23326635,81.72,81.68,19.23326635]
[1770816831789,54.3,81.724,81.7,19.23326635]
[1770816832110,19.23326635,81.74,81.7,19.23326635]
[1770816832313,19.23326635,81.73,81.7,19.23326635]
[1770816832507,19.23326635,81.74,81.7,19.23326635]
[1770816832805,110.05539453,81.777,81.7,19.23326635]
[1770816832806,19.23326635,81.73,81.701,12.23975226]
[1770816833104,54.22,81.729,81.7,19.23326635]
[1770816833406,19.23326635,81.73,81.701,12.23975226]
[1770816833610,19.23326635,81.73,81.668,5.13032502]
[1770816833611,12.23555898,81.729,81.69,19.23326635]
[1770816833813,12.23555898,81.729,81.701,12.23975226]
[1770816834186,19.23326635,81.72,81.673,30.60962991]
[1770816834391,42.82445643,81.729,81.647,5.13032502]
[1770816834392,19.23326635,81.71,81.647,5.13032502]
[1770816834609,42.82445643,81.729,81.671,12.24421011]
[1770816834908,12.23993177,81.7,81.661,12.24574766]
[1770816835113,12.23993177,81.7,81.378,140.0]
[1770816835114,19.23326635,81.69,81.65,19.23326635]
[1770816835295,19.23326635,81.69,81.656,12.24640981]
[1770816835499,19.23326635,81.68,81.656,12.24640981]
[1770816835691,54.12,81.689,81.65,19.23326635]
[1770816835892,19.23326635,81.68,81.651,12.24718025]
[1770816836188,19.23326635,81.67,81.64,31.48203316]
[1770816836388,19.23326635,81.69,81.65,19.23326635]
[1770816836607,19.23326635,81.69,81.652,12.24695145]
[1770816836812,19.23326635,81.69,81.656,12.24649483]
[1770816837008,19.23326635,81.68,81.65,19.23326635]
[1770816837214,54.08,81.696,81.67,19.23326635]
[1770816837416,5.36086188,81.768,81.657,42.86221633]
[1770816837417,54.06,81.717,81.69,19.23326635]
[1770816837708,54.06,81.717,81.7,19.23326635]
[1770816837900,54.06,81.717,81.68,19.23326635]
[1770816838301,19.23326635,81.71,81.67,19.23326635]
[1770816838704,19.23326635,81.71,81.657,42.86221633]
[1770816838895,19.23326635,81.7,81.67,31.47755843]
[1770816839506,19.23326635,81.7,81.67,12.24429208]
[1770816839710,54.02,81.702,81.67,31.47755843]
[1770816840019,19.23326635,81.7,81.67,31.47755843]
[1770816840221,48.91715359,81.771,81.68,19.23326635]
[1770816840518,19.23326635,81.71,81.66,19.23326635]
[1770816840717,19.23326635,81.7,81.664,12.2452161]
[1770816841012,12.23900325,81.706,81.671,12.24424826]
[1770816841318,53.98,81.707,81.671,12.24424826]
[1770816841319,53.98,81.707,81.68,19.23326635]
[1770816841523,53.98,81.718,81.68,19.23326635]
[1770816841905,19.23326635,81.71,81.671,12.24424826]
[1770816842101,53.98,81.718,81.69,19.23326635]
[1770816842430,12.2255367,81.796,81.71,19.23326635]
[1770816842718,53.94,81.795,81.7,19.23326635]
[1770816842920,6.39304079,81.796,81.76,12.33088911]
[1770816843130,48.86200656,81.864,81.78,12.33088911]
[1770816843131,12.2221,81.819,81.78,12.33088911]
[1770816843334,12.2221,81.819,81.76,12.33088911]
[1770816843335,12.33088911,81.8,81.76,12.33088911]
[1770816843634,66.27088911,81.8,81.76,12.33088911]
[1770816843920,12.33088911,81.78,81.74,24.56476268]
[1770816844224,53.94,81.8,81.77,12.33088911]
[1770816844426,53.92,81.81,81.771,1.00368715]
[1770816844601,53.92,81.81,81.79,12.33088911]
[1770816845019,53.92,81.81,81.771,1.00368715]
[1770816845020,12.22359398,81.809,81.78,12.33088911]
[1770816845217,12.22359398,81.809,81.79,12.33088911]
[1770816845425,12.43088911,81.82,81.8,13.29014227]
[1770816845426,0.1,81.82,81.8,13.29014227]
[1770816845724,0.1,81.82,81.79,24.55721582]
[1770816845938,13.1894753,81.819,81.78,12.33088911]
[1770816846103,0.9673753,81.818,81.771,12.22923819]
[1770816846302,0.9673753,81.809,81.77,12.33088911]
[1770816846519,12.2221,81.819,81.79,12.33088911]
[1770816846909,0.9673753,81.818,81.78,19.20402092]
[1770816847116,19.20402092,81.81,81.768,0.95925316]
[1770816847306,0.9673753,81.809,81.768,0.95925316]
[1770816847503,0.9673753,81.809,81.77,19.20402092]
[1770816847900,53.8,81.81,81.78,19.20402092]
[1770816848314,73.00402092,81.81,81.78,19.20402092]
[1770816848511,54.7673753,81.81,81.78,19.20402092]
[1770816848736,0.1,81.82,81.8,19.20402092]
[1770816849216,0.9673753,81.819,81.78,19.20402092]
[1770816849416,19.20402092,81.81,81.771,12.22925727]
[1770816849727,19.20402092,81.81,81.78,19.20402092]
[1770816850028,0.9673753,81.809,81.774,12.22872062]
[1770816850332,53.74,81.819,81.79,19.20402092]
[1770816850516,0.9673753,81.809,81.77,31.43335104]
[1770816850904,0.9673753,81.809,81.776,12.22840329]
[1770816851106,0.1,81.82,81.781,0.95925316]
[1770816851307,0.9673753,81.809,81.77,19.20402092]
[1770816851508,0.9673753,81.779,81.73,19.20402092]
[1770816851707,0.9673753,81.759,81.72,19.20402092]
[1770816852009,0.9673753,81.759,81.674,106.5748878]
[1770816852010,19.20402092,81.73,81.69,19.20402092]
[1770816852204,19.20402092,81.73,81.691,0.95925316]
[1770816852509,0.9673753,81.729,81.69,19.20402092]
[1770816852810,19.20402092,81.72,81.69,19.20402092]
[1770816853126,12.23705625,81.719,81.681,12.24263577]
[1770816853313,12.23564648,81.729,81.7,19.20402092]
[1770816853632,20.17139622,81.71,81.666,0.95925316]
[1770816853815,19.20402092,81.72,81.683,0.95925316]
[1770816854131,19.20402092,81.71,81.67,19.20402092]
[1770816854434,19.20402092,81.71,81.676,12.2434739]
[1770816854435,0.9673753,81.709,81.676,12.2434739]
[1770816854607,0.9673753,81.709,81.67,19.20402092]
[1770816854811,0.9673753,81.709,81.68,19.20402092]
[1770816855010,0.9673753,81.729,81.676,0.95925316]
[1770816855230,0.9673753,81.727,81.69,19.20402092]
[1770816855416,19.20402092,81.72,81.68,31.44683891]
[1770816855614,0.9673753,81.719,81.681,0.95925316]
[1770816855912,0.9673753,81.719,81.682,12.2424521]
[1770816856116,53.56,81.736,81.7,19.20402092]
[1770816856117,12.23500949,81.733,81.7,19.20402092]
[1770816856315,0.9673753,81.719,81.68,19.20402092]
[1770816856722,0.9673753,81.709,81.67,19.20402092]
[1770816857110,12.23870367,81.708,81.674,12.2437671]
[1770816857312,12.23870367,81.708,81.661,0.95925316]
[1770816857533,12.23771692,81.715,81.68,19.20402092]
[1770816857734,12.23771692,81.715,81.69,19.20402092]
[1770816858031,0.9673753,81.728,81.671,42.85486892]
[1770816858334,0.9673753,81.699,81.66,31.44984365]
[1770816858535,0.9673753,81.726,81.681,0.95925316]
[1770816858728,19.20402092,81.71,81.671,12.24424826]
[1770816859131,0.9673753,81.719,81.68,19.20402092]
[1770816859326,19.20402092,81.71,81.67,19.20402092]
[1770816859628,20.17139622,81.71,81.67,19.20402092]
[1770816860322,1.0107424,81.709,81.67,19.20402092]
[1770816861013,1.0107424,81.709,81.665,0.95925316]
[1770816861014,19.20402092,81.7,81.665,0.95925316]
[1770816861422,12.23735575,81.717,81.681,1.08036881]
[1770816861945,12.23705625,81.719,81.69,19.20402092]
[1770816862117,1.0107424,81.764,81.711,1.08036881]
[1770816862316,1.0107424,81.764,81.666,300.00244897]
[1770816862317,1.0107424,81.779,81.75,19.20402092]
[1770816862838,1.0107424,81.779,81.696,5.36086188]
[1770816862839,19.20402092,81.77,81.73,20.28438973]
[1770816863146,1.0107424,81.769,81.73,19.20402092]
[1770816863444,12.23106936,81.759,81.721,1.08036881]
[1770816863854,19.20402092,81.75,81.721,1.08036881]
[1770816864047,19.20402092,81.73,81.691,1.08036881]
[1770816864250,1.0107424,81.729,81.691,1.08036881]
[1770816864453,19.20402092,81.72,81.691,1.08036881]
[1770816864648,1.0107424,81.729,81.692,12.24110071]
[1770816864833,91.7330202,81.759,81.711,1.08036881]
[1770816864834,19.20402092,81.75,81.711,1.08036881]
[1770816865032,1.0107424,81.749,81.711,1.08036881]
[1770816865435,19.20402092,81.74,81.707,12.23871506]
[1770816865638,19.20402092,81.73,81.696,1.08036881]
[1770816865946,1.08903454,81.729,81.69,19.20402092]
[1770816866143,1.08903454,81.729,81.693,12.24091122]
[1770816866445,1.08903454,81.729,81.695,12.24052333]
[1770816866754,1.08903454,81.729,81.703,12.23938889]
[1770816866947,1.08903454,81.729,81.7,19.24867742]
[1770816867143,1.08903454,81.729,81.635,48.99804672]
[1770816867144,12.23271517,81.748,81.712,12.23810456]
[1770816867345,12.23271517,81.748,81.713,1.01684198]
[1770816867647,12.23271517,81.748,81.712,12.23810456]
[1770816867648,12.23271517,81.748,81.711,1.01684198]
[1770816867827,19.24867742,81.74,81.7,20.2655194]
[1770816868030,1.08903454,81.747,81.71,19.24867742]
[1770816868329,1.08903454,81.739,81.705,12.23904396]
[1770816868537,1.08903454,81.739,81.7,19.24867742]
[1770816869037,1.08903454,81.739,81.7,12.3415513]
[1770816869240,12.3415513,81.72,81.686,1.01684198]
[1770816869438,1.08903454,81.729,81.69,13.35839328]
[1770816869748,1.08903454,81.729,81.691,1.01684198]
[1770816869929,12.3415513,81.72,81.686,12.2419592]
[1770816870127,1.08903454,81.729,81.691,1.01684198]
[1770816870349,1.08903454,81.767,81.72,13.35839328]
[1770816870551,12.3415513,81.75,81.72,1.01684198]
[1770816870752,12.3415513,81.75,81.707,1.01684198]
[1770816870937,12.3415513,81.74,81.707,1.01684198]
[1770816871128,12.3415513,81.75,81.711,1.01684198]
[1770816871330,12.22957355,81.769,81.731,1.01684198]
[1770816871546,12.22957355,81.769,81.729,12.23555344]
[1770816871547,1.08903454,81.759,81.72,12.3415513]
[1770816871742,1.08903454,81.759,81.72,13.35839328]
[1770816871947,53.02,81.768,81.73,12.3415513]
[1770816872149,42.80350743,81.769,81.731,1.01684198]
[1770816872446,12.3415513,81.75,81.711,1.01684198]
[1770816872849,1.08903454,81.749,81.711,1.01684198]
[1770816873240,1.08903454,81.749,81.712,1.01684198]
[1770816873443,30.57842141,81.757,81.731,1.01684198]
[1770816873752,12.23136856,81.757,81.73,12.3415513]
[1770816873937,12.23136856,81.757,81.721,1.01684198]
[1770816874138,1.08903454,81.756,81.71,12.3415513]
[1770816874338,12.3415513,81.75,81.711,1.01684198]
[1770816874562,1.08903454,81.756,81.713,12.23793732]
[1770816874731,42.80978997,81.757,81.73,12.3415513]
[1770816874938,42.80978997,81.757,81.722,1.01684198]
[1770816875136,13.43058584,81.77,81.74,12.3415513]
[1770816875137,12.2308006,81.761,81.74,12.3415513]
[1770816875457,12.23106936,81.759,81.721,1.01684198]
[1770816875637,42.80874276,81.759,81.73,12.3415513]
[1770816875951,42.80874276,81.759,81.721,1.01684198]
[1770816876251,12.3415513,81.75,81.706,1.01684198]
[1770816876559,12.3415513,81.75,81.711,1.01684198]
[1770816876744,1.08903454,81.758,81.72,12.3415513]
[1770816877054,1.08903454,81.758,81.678,5.13032502]
[1770816877055,42.80874276,81.759,81.73,13.35839328]
[1770816877248,42.80874276,81.759,81.73,1.01684198]
[1770816877457,12.22987268,81.767,81.74,12.3415513]
[1770816877751,12.22987268,81.767,81.689,48.9659303]
[1770816877752,12.22987268,81.767,81.732,1.01684198]
[1770816877934,12.22987268,81.767,81.74,12.3415513]
[1770816878138,12.22987268,81.767,81.741,1.01684198]
[1770816878337,10.04808924,81.767,81.75,12.3415513]
[1770816878658,12.2285267,81.776,81.75,12.3415513]
[1770816879457,12.22777906,81.781,81.76,12.3415513]
[1770816879650,1.09326769,81.769,81.725,12.23613211]
[1770816879956,42.79722673,81.781,81.72,12.3415513]
[1770816879957,1.09326769,81.749,81.72,12.3415513]
[1770816880152,1.09326769,81.749,81.71,12.3415513]
[1770816880457,1.09326769,81.749,81.705,12.2390633]
[1770816880952,1.09326769,81.74,81.71,12.3415513]
[1770816881157,1.09326769,81.74,81.711,12.23825433]
[1770816881538,1.09326769,81.738,81.706,12.23886794]
[1770816881759,1.09326769,81.759,81.72,12.3415513]
[1770816882137,1.09326769,81.749,81.711,12.23825433]
[1770816882455,1.09326769,81.765,81.73,12.3415513]
[1770816882661,1.09326769,81.759,81.72,12.3415513]
[1770816883240,1.09326769,81.759,81.711,42.83389016]
[1770816883442,42.80926636,81.758,81.72,12.3415513]
[1770816883742,1.09326769,81.757,81.718,12.23707973]
[1770816883951,1.09326769,81.757,81.721,12.23675676]
[1770816884940,1.09326769,81.757,81.656,48.98574376]
[1770816884941,1.09326769,81.757,81.71,12.3415513]
[1770816885256,1.09326769,81.749,81.71,12.3415513]
[1770816885759,1.09326769,81.747,81.71,12.3415513]
[1770816885958,42.8145031,81.748,81.69,12.3415513]
[1770816885959,1.09326769,81.729,81.69,12.3415513]
[1770816886166,1.09326769,81.699,81.666,12.24492961]
[1770816886545,1.09326769,81.699,81.663,12.24535272]
[1770816886747,1.09326769,81.709,81.67,12.3415513]
[1770816886943,1.09326769,81.699,81.663,12.24543645]
[1770816887158,1.09326769,81.689,81.661,12.24570831]
[1770816887359,52.54,81.711,81.638,61.24526988]
[1770816887670,1.09326769,81.707,81.67,12.3415513]
[1770816888065,110.1211827,81.729,81.632,5.13032502]
[1770816888066,12.23690651,81.72,81.68,12.3415513]
[1770816888566,12.23690651,81.72,81.69,12.3415513]
[1770816888772,30.58798937,81.732,81.69,12.3415513]
[1770816889065,12.23525957,81.731,81.7,12.3415513]
[1770816889457,48.92348875,81.761,81.66,12.3415513]
[1770816889458,12.3415513,81.76,81.72,12.3415513]
[1770816889654,52.46,81.775,81.72,12.3415513]
[1770816889655,12.22894281,81.774,81.75,12.3415513]
[1770816890050,0.99766419,81.773,81.75,12.3415513]
[1770816890251,52.46,81.775,81.76,12.3415513]
[1770816890468,1.01829112,81.773,81.728,0.40431144]
[1770816890768,31.58152291,81.798,81.76,12.3415513]
[1770816890959,1.01829112,81.797,81.76,12.3415513]
[1770816891161,12.3415513,81.79,81.75,12.3415513]
[1770816891366,1.01829112,81.789,81.76,12.3415513]
[1770816891673,1.01829112,81.787,81.75,12.3415513]
[1770816892059,1.01829112,81.779,81.74,12.3415513]
[1770816892465,1.01829112,81.779,81.76,12.3415513]
[1770816892665,52.42,81.786,81.76,12.3415513]
[1770816892864,1.01829112,81.785,81.76,12.3415513]
[1770816894182,12.22718102,81.785,81.76,12.3415513]
[1770816894480,1.01829112,81.794,81.76,24.57234294]
[1770816894677,1.01829112,81.794,81.76,12.3415513]
[1770816894885,1.01829112,81.789,81.76,12.3415513]
[1770816895184,1.01829112,81.789,81.725,0.41005824]
[1770816895359,1.01829112,81.789,81.75,12.3415513]
[1770816895554,1.01829112,81.789,81.753,12.23194258]
[1770816895753,1.01829112,81.789,81.76,12.3415513]
[1770816896175,1.01829112,81.789,81.77,12.3415513]
[1770816896468,1.01829112,81.789,81.745,30.58288143]
[1770816896469,1.01829112,81.787,81.76,12.3415513]
[1770816896854,1.01829112,81.779,81.74,12.3415513]
[1770816897054,1.01829112,81.779,81.75,12.3415513]
[1770816897973,1.01829112,81.779,81.76,12.3415513]
[1770816898181,1.01829112,81.779,81.75,12.3415513]
[1770816898373,1.01829112,81.779,81.76,12.3415513]
[1770816898770,52.34,81.786,81.76,12.3415513]
[1770816898967,1.01829112,81.785,81.76,12.3415513]
[1770816899164,13.24547214,81.785,81.76,12.3415513]
[1770816899571,1.01829112,81.785,81.76,12.3415513]
[1770816899877,13.24203451,81.808,81.77,12.75343938]
[1770816900178,1.01829112,81.799,81.751,12.23226627]
[1770816900382,12.3415513,81.78,81.75,12.3415513]
[1770816900558,1.01829112,81.779,81.74,12.3415513]
[1770816900959,1.01829112,81.749,81.671,0.41219528]
[1770816901185,12.3415513,81.78,81.7,12.3415513]
[1770816901186,1.01829112,81.739,81.7,12.3415513]
[1770816901365,1.01829112,81.737,81.7,12.3415513]
[1770816901561,12.3415513,81.72,81.68,12.3415513]
[1770816901766,1.01829112,81.719,81.68,12.3415513]
[1770816901962,1.01829112,81.719,81.69,12.3415513]
[1770816902167,1.01829112,81.731,81.71,12.3415513]
[1770816902370,311.74356339,81.798,81.687,30.60425585]
[1770816902371,12.23151817,81.756,81.711,12.23825433]
[1770816902563,1.01829112,81.749,81.71,24.57982549]
[1770816903084,64.55151817,81.756,81.73,12.3415513]
[1770816903273,13.24676744,81.777,81.75,12.3415513]
[1770816903475,12.22772978,81.782,81.76,12.3415513]
[1770816903787,48.87563336,81.841,81.72,12.3415513]
[1770816903788,12.22228526,81.818,81.771,1.05736702]
[1770816903974,12.22228526,81.818,81.78,12.3415513]
[1770816904667,12.22228526,81.818,81.79,12.3415513]
[1770816904872,12.22228526,81.818,81.78,12.3415513]
[1770816905181,12.22228526,81.818,81.79,12.3415513]
[1770816906065,12.22228526,81.818,81.78,12.3415513]
[1770816906784,12.22228526,81.818,81.79,12.3415513]
[1770816906985,1.01829112,81.817,81.78,12.3415513]
[1770816907287,1.01829112,81.817,81.79,12.3415513]
[1770816907580,1.01829112,81.817,81.77,12.3415513]
[1770816907766,1.01829112,81.799,81.747,12.23281241]
[1770816908081,1.01829112,81.799,81.71,48.95306341]
[1770816908082,1.01829112,81.779,81.734,12.23466843]
[1770816908592,1.01829112,81.779,81.73,12.3415513]
[1770816908593,1.01829112,81.769,81.73,12.3415513]
[1770816909089,1.01829112,81.777,81.74,12.3415513]
[1770816909472,12.3415513,81.76,81.704,1.05736702]
[1770816909783,91.7117073,81.778,81.72,12.3415513]
[1770816909784,1.01829112,81.759,81.72,12.3415513]
[1770816910374,1.01829112,81.769,81.73,12.3415513]
[1770816910575,1.01829112,81.759,81.71,12.3415513]
[1770816910870,1.01829112,81.782,81.711,1.05736702]
[1770816911072,1.01829112,81.78,81.75,12.3415513]
[1770816911378,1.01829112,81.759,81.72,12.3415513]
[1770816911581,1.01829112,81.759,81.721,13.29400764]
[1770816911776,1.01829112,81.759,81.72,12.3415513]
[1770816912300,1.01829112,81.759,81.706,1.05736702]
[1770816912489,250.66947088,81.781,81.71,12.3415513]
[1770816912490,1.01829112,81.748,81.71,12.3415513]
[1770816912870,1.01829112,81.748,81.702,12.23960245]
[1770816913067,1.01829112,81.739,81.7,12.3415513]
[1770816913266,1.01829112,81.739,81.69,12.3415513]
[1770816913491,1.01829112,81.729,81.69,12.3415513]
[1770816913790,1.01829112,81.709,81.67,12.3415513]
[1770816914088,1.01829112,81.709,81.68,12.3415513]
[1770816914265,1.01829112,81.709,81.67,1.05736702]
[1770816914471,12.2375055,81.716,81.69,12.3415513]
[1770816914672,1.01829112,81.715,81.67,13.39891832]
[1770816914975,1.01829112,81.715,81.669,12.24450252]
[1770816915287,42.83126926,81.716,81.67,12.3415513]
[1770816915288,1.01829112,81.709,81.67,12.3415513]
[1770816915476,12.2375055,81.716,81.671,1.05736702]
[1770816915682,1.01829112,81.715,81.67,12.3415513]
[1770816915890,1.01829112,81.715,81.67,24.58586458]
[1770816916067,1.01829112,81.709,81.66,24.58731615]
[1770816916274,1.01829112,81.709,81.68,12.3415513]
[1770816916468,1.01829112,81.699,81.66,12.3415513]
[1770816916768,12.3415513,81.68,81.64,12.3415513]
[1770816916981,1.01829112,81.685,81.65,12.3415513]
[1770816917667,1.01829112,81.685,81.62,0.2]
[1770816917668,1.01829112,81.697,81.66,12.3415513]
[1770816917874,12.23870367,81.708,81.68,12.3415513]
[1770816918089,12.23870367,81.708,81.67,12.3415513]
[1770816918291,12.23870367,81.708,81.651,1.05736702]
[1770816918292,1.01829112,81.701,81.651,1.05736702]
[1770816918493,12.24170012,81.688,81.65,12.3415513]
[1770816918679,12.24170012,81.688,81.66,12.3415513]
[1770816918885,12.24170012,81.688,81.652,1.05736702]
[1770816919296,1.01829112,81.669,81.632,1.05736702]
[1770816919594,1.01829112,81.681,81.645,12.24801586]